bitfinex-derivatives/quotes_ETHF0:USTF0_20250804
["timestamp","ask_amount","ask_price","bid_price","bid_amount"]
[1754345273692,4.96763093,3723.8,3723.7,3.2078]
[1754345273985,4.43058093,3723.8,3723.7,3.2078]
[1754345274292,4.43058093,3723.8,3723.3,0.9051]
[1754345274293,1.4206,3723.7,3723.3,3.74491]
[1754345274588,4.43058093,3723.4,3723.3,3.74491]
[1754345274988,1.4206,3723.4,3723.3,3.74491]
[1754345275191,4.43058093,3723.4,3723.3,3.74491]
[1754345275489,4.43058093,3723.4,3722.4,1.34311]
[1754345275490,0.9411,3723.3,3722.9,4.1129]
[1754345275696,3.91668093,3723.1,3723.0,0.53716]
[1754345276095,3.2078,3724.0,3723.6,0.53706]
[1754345276096,0.4272,3723.9,3723.6,0.53706]
[1754345276288,0.4272,3723.8,3723.6,3.2078]
[1754345276492,3.00998093,3723.9,3723.8,0.53705]
[1754345276694,3.00998093,3723.9,3723.8,1.93135]
[1754345276886,1.4206,3724.2,3724.1,0.53701]
[1754345277091,1.4206,3723.9,3723.6,3.2078]
[1754345277394,1.4206,3723.8,3723.7,0.53706]
[1754345277594,0.9067,3723.8,3723.7,1.44216]
[1754345278395,3.00998093,3723.8,3723.6,3.74487]
[1754345278596,3.2078,3724.2,3723.2,3.2078]
[1754345278597,1.4206,3723.5,3723.2,3.2078]
[1754345278897,3.00998093,3723.3,3722.7,3.2078]
[1754345279091,3.00998093,3723.0,3722.8,0.97319]
[1754345279298,3.52388093,3722.9,3722.8,0.53719]
[1754345279498,3.91668093,3722.9,3722.8,0.53719]
[1754345279704,4.43058093,3722.9,3722.7,3.2078]
[1754345280004,0.9067,3722.9,3722.8,0.53719]
[1754345280296,3.95108093,3722.8,3722.7,4.18101]
[1754345280496,4.43058093,3722.8,3722.7,4.18101]
[1754345280802,3.52388093,3722.8,3722.7,5.13931]
[1754345281300,3.00998093,3722.8,3722.7,5.13931]
[1754345281497,3.52388093,3722.8,3722.7,5.13931]
[1754345281700,3.00998093,3722.8,3722.7,5.13931]
[1754345281906,0.5049,3723.1,3723.0,0.53716]
[1754345282098,4.42348093,3723.1,3723.0,1.47176]
[1754345282296,4.42348093,3723.1,3723.0,0.53716]
[1754345282702,3.51488093,3723.1,3723.0,1.94846]
[1754345282904,4.42348093,3723.1,3723.0,1.47176]
[1754345283403,1.4135,3723.1,3723.0,1.47176]
[1754345284101,4.42348093,3723.1,3723.0,0.53716]
[1754345285205,3.00998093,3723.1,3722.9,0.53717]
[1754345285405,1.4135,3723.0,3722.9,0.53717]
[1754345285705,3.91858093,3723.0,3722.9,0.53717]
[1754345285906,4.42348093,3723.0,3722.9,0.53717]
[1754345286504,0.53702,3724.1,3723.0,0.4767]
[1754345286809,1.4135,3724.3,3723.7,0.53706]
[1754345287209,2.46228093,3723.8,3723.7,0.53706]
[1754345287505,3.87578093,3723.8,3723.7,0.53706]
[1754345288110,1.04189,3724.3,3724.2,0.53699]
[1754345288310,0.5049,3724.2,3724.1,0.537]
[1754345288613,1.4135,3724.2,3724.1,1.4716]
[1754345288812,3.87578093,3724.2,3724.1,1.4716]
[1754345289016,4.6213,3724.4,3724.3,0.53698]
[1754345289410,7.08358093,3724.4,3724.3,1.47158]
[1754345290013,4.6213,3724.8,3724.3,1.4113]
[1754345290314,1.4135,3724.7,3724.6,1.47152]
[1754345290611,1.4135,3724.7,3724.6,0.53692]
[1754345290816,3.87578093,3724.7,3724.6,0.53692]
[1754345291017,3.87578093,3724.7,3724.6,1.47152]
[1754345291414,1.34184,3726.0,3724.6,0.53692]
[1754345291615,1.34184,3726.0,3723.0,0.2685]
[1754345291616,0.66927308,3726.5,3725.9,3.2078]
[1754345291919,1.4771,3727.0,3726.9,0.5366]
[1754345292109,2.4135,3727.0,3726.9,3.7444]
[1754345293909,2.4135,3727.0,3726.9,3.2078]
[1754345297911,1.0,3727.0,3726.9,3.2078]
[1754345298111,1.982,3727.0,3726.9,3.2078]
[1754345298313,2.4135,3727.0,3726.9,3.2078]
[1754345301423,1.0,3727.0,3726.9,3.7444]
[1754345301614,1.982,3727.0,3726.9,3.7444]
[1754345301812,2.4135,3727.0,3726.9,3.7444]
[1754345302524,1.982,3727.0,3726.9,3.7444]
[1754345303022,1.0,3727.0,3726.9,3.7444]
[1754345303423,1e-05,3727.0,3726.9,3.7444]
[1754345304724,1e-05,3727.0,3726.9,22.7904]
[1754345304925,1e-05,3727.0,3726.9,3.7444]
[1754345305123,0.98201,3727.0,3726.9,3.7444]
[1754345305321,1.41351,3727.0,3726.9,3.2078]
[1754345305720,0.98201,3727.0,3726.9,3.2078]
[1754345305921,1.41351,3727.0,3726.9,3.2078]
[1754345308124,0.47711,3727.0,3726.9,3.2078]
[1754345309926,1.41351,3727.0,3726.9,3.2078]
[1754345315833,1.42451,3727.0,3726.9,3.2078]
[1754345316634,1e-05,3727.0,3726.9,3.2791]
[1754345316927,1e-05,3727.0,3726.9,3.2078]
[1754345317132,0.51481,3727.0,3726.9,3.2078]
[1754345317329,1.03391,3727.0,3726.9,3.2791]
[1754345318034,1.47641,3727.0,3726.9,3.7444]
[1754345319132,0.51481,3727.0,3726.9,3.7444]
[1754345319329,1.47641,3727.0,3726.9,3.7444]
[1754345320727,1.47641,3727.0,3726.9,3.2078]
[1754345321731,1.4764,3726.6,3726.5,3.2078]
[1754345322432,1.4764,3726.6,3726.5,3.274]
[1754345322632,1.4764,3726.6,3726.5,3.2078]
[1754345323534,1.4764,3726.6,3726.5,3.274]
[1754345324028,1.4764,3726.6,3726.5,3.2078]
[1754345324425,0.5148,3726.6,3726.5,3.274]
[1754345324629,1.4764,3726.6,3726.5,3.2078]
[1754345327830,1.4764,3726.6,3726.5,3.274]
[1754345328026,1.4764,3726.6,3726.5,3.2078]
[1754345328629,2.47,3726.6,3726.5,3.4194]
[1754345329029,3.00664,3726.6,3726.5,3.2078]
[1754345330531,3.00664,3726.6,3726.4,0.53667]
[1754345330733,1.4361,3726.5,3726.4,0.53667]
[1754345330937,2.47,3726.5,3726.4,0.53667]
[1754345332638,2.0275,3726.5,3726.4,0.74827]
[1754345332837,2.0275,3726.5,3726.4,0.81447]
[1754345333232,0.5148,3726.5,3726.4,0.81447]
[1754345334937,1.0339,3726.5,3726.1,3.2078]
[1754345335142,2.47,3726.2,3726.1,3.2078]
[1754345335547,2.47,3726.2,3726.1,3.74451]
[1754345336946,2.47,3726.2,3726.1,3.2078]
[1754345339146,2.47,3725.8,3725.7,0.53676]
[1754345339341,3.00677,3725.7,3725.6,3.2078]
[1754345339941,0.9936,3725.3,3725.2,3.2078]
[1754345340141,1.6035,3725.3,3725.2,3.3136]
[1754345340345,2.47,3725.3,3725.2,3.4194]
[1754345340544,2.47,3725.3,3725.2,3.2078]
[1754345342047,0.5338,3725.4,3725.3,0.2195]
[1754345342253,0.4234,3725.8,3725.3,0.58913]
[1754345342448,2.45221,3725.5,3725.4,0.53682]
[1754345342649,2.45221,3725.5,3725.2,3.2078]
[1754345342650,1.8977,3725.3,3725.2,3.74464]
[1754345342850,2.4315,3725.3,3725.2,3.74464]
[1754345343254,1.7541,3724.9,3724.7,3.2078]
[1754345343547,1.3421,3725.3,3724.4,0.0523]
[1754345343548,0.9395,3724.8,3724.4,2.45124353]
[1754345343749,1.49515,3724.5,3724.3,5.12209353]
[1754345343955,2.4315,3724.4,3724.3,3.2078]
[1754345344251,0.9582,3724.1,3724.0,0.53701]
[1754345344445,2.4315,3724.1,3724.0,0.53701]
[1754345344646,0.5161,3724.6,3724.5,0.62053]
[1754345344854,0.4234,3725.0,3724.8,0.1672]
[1754345345055,0.5161,3724.9,3724.8,0.2195]
[1754345345253,0.5161,3724.9,3724.8,0.0523]
[1754345345555,0.5161,3725.1,3725.0,0.0523]
[1754345345750,0.5161,3725.1,3725.0,3.2601]
[1754345346150,1.4733,3725.1,3725.0,3.2078]
[1754345346347,0.53691,3724.8,3724.7,0.53691]
[1754345346553,2.01021,3724.8,3724.6,0.53693]
[1754345346756,2.01021,3724.8,3724.4,3.2078]
[1754345346757,2.01023,3724.6,3724.4,3.74475]
[1754345346959,1.4733,3724.5,3724.4,3.74475]
[1754345347255,1.0499,3724.4,3724.3,0.53697]
[1754345347456,1.4733,3724.4,3724.3,0.53697]
[1754345347649,0.9395,3724.3,3724.2,0.53698]
[1754345347847,0.53699,3724.2,3724.1,0.537]
[1754345348055,1.34227,3724.8,3724.2,0.53698]
[1754345348252,0.9395,3724.5,3724.4,0.53696]
[1754345348447,1.4733,3724.5,3724.4,0.53696]
[1754345348846,2.01026,3724.4,3724.2,0.53699]
[1754345349060,1.4733,3724.3,3724.2,0.53699]
[1754345349453,1.47649,3724.3,3724.1,0.537]
[1754345349650,2.01031,3724.1,3724.0,3.2078]
[1754345351159,1.4733,3724.0,3723.9,0.53702]
[1754345351354,0.9572,3724.0,3723.9,0.53702]
[1754345351660,1.4733,3724.0,3723.9,0.53702]
[1754345351959,1.0499,3724.0,3723.9,0.58932]
[1754345352358,0.5161,3724.0,3723.9,0.58932]
[1754345353258,1.4733,3724.0,3723.9,0.53702]
[1754345353455,2.01036,3723.7,3723.6,3.2078]
[1754345354958,2.01042,3723.3,3723.2,3.2078]
[1754345355158,1.4733,3723.3,3723.2,3.2078]
[1754345357660,1.4733,3723.3,3722.8,3.74499]
[1754345357856,0.5161,3723.0,3722.9,0.53717]
[1754345358061,0.5161,3723.0,3722.9,0.58947]
[1754345358464,1.4733,3723.0,3722.9,0.53717]
[1754345358655,1.9154,3723.0,3722.9,0.53717]
[1754345358861,2.4315,3723.0,3722.9,0.53717]
[1754345359258,2.4315,3723.0,3722.8,3.2078]
[1754345359259,1.49538,3722.9,3722.8,3.2078]
[1754345359462,2.4315,3722.9,3722.8,3.2078]
[1754345360563,0.5161,3722.9,3722.8,3.4273]
[1754345361063,0.9582,3723.4,3723.3,0.53711]
[1754345361358,1.9154,3722.9,3722.8,3.74498]
[1754345361563,2.4315,3722.9,3722.8,3.2078]
[1754345363064,2.4315,3722.9,3722.8,3.2914]
[1754345364255,2.4315,3722.9,3722.8,3.2078]
[1754345369766,0.5161,3722.9,3722.8,3.375]
[1754345369967,2.0081,3723.3,3723.2,0.70434]
[1754345370167,2.0081,3723.3,3723.2,0.75664]
[1754345370469,2.4315,3723.3,3723.2,0.53714]
[1754345370869,2.4315,3723.3,3723.2,0.70434]
[1754345371171,2.4315,3723.3,3723.2,0.75664]
[1754345371669,2.0081,3723.3,3723.2,0.75664]
[1754345371869,1.4752,3723.9,3723.8,0.53705]
[1754345372069,1.4752,3723.9,3723.2,3.74494]
[1754345372070,0.3435,3723.3,3723.2,3.74494]
[1754345372266,1.9062,3723.3,3723.2,3.74494]
[1754345372570,2.4243,3723.3,3723.2,3.2078]
[1754345372766,1.3977,3722.9,3722.8,3.2078]
[1754345372974,2.4243,3722.9,3722.8,3.2078]
[1754345373271,2.96141,3723.4,3723.3,0.53712]
[1754345373467,1.3977,3722.9,3722.8,3.83229]
[1754345373672,2.4243,3722.9,3722.8,3.79869]
[1754345374277,2.4243,3722.9,3722.8,3.88599]
[1754345374778,2.4243,3722.9,3722.8,3.79869]
[1754345374970,2.4243,3722.9,3722.8,3.74499]
[1754345375470,2.4243,3722.9,3722.8,3.79869]
[1754345376075,2.4243,3722.9,3722.8,3.74499]
[1754345378077,2.4243,3722.9,3722.8,3.79869]
[1754345378278,2.4243,3722.9,3722.8,3.88599]
[1754345378279,0.5181,3722.9,3722.8,3.88599]
[1754345378481,0.431,3723.2,3723.1,0.64455]
[1754345378482,0.5085,3723.2,3723.1,0.64455]
[1754345378685,1.0266,3723.2,3723.1,0.67815]
[1754345379078,1.359,3723.2,3723.1,0.67815]
[1754345379380,1.6498,3723.2,3723.1,0.67815]
[1754345379572,1.9933,3723.2,3723.1,0.67815]
[1754345379780,2.4243,3723.2,3723.1,0.67815]
[1754345380179,1.5013113,3724.3,3723.7,0.53706]
[1754345380378,0.3324,3724.1,3724.0,3.85222]
[1754345380587,2.4243,3723.7,3723.6,3.79857]
[1754345380883,0.79621213,3724.1,3723.6,3.79857]
[1754345380884,1.0266,3724.1,3724.0,0.64442]
[1754345381090,1.0266,3724.1,3724.0,3.88582]
[1754345381485,0.5181,3724.1,3724.0,3.88582]
[1754345381689,0.13300349,3724.3,3724.2,0.64439]
[1754345381889,0.79602969,3724.4,3724.3,0.141]
[1754345382089,1.60820349,3724.4,3724.3,0.141]
[1754345382284,2.03920349,3724.4,3724.3,0.141]
[1754345382489,0.65110349,3724.4,3724.3,0.1074]
[1754345382690,0.8505,3724.4,3724.3,0.67796]
[1754345382992,1.9933,3724.4,3724.3,0.67796]
[1754345384488,1.9933,3724.4,3724.3,0.64436]
[1754345384683,1.359,3724.4,3724.3,0.67796]
[1754345384989,0.5181,3724.8,3724.4,1.517]
[1754345385194,0.65110134,3724.8,3724.7,0.141]
[1754345385493,0.5181,3724.8,3724.7,0.1746]
[1754345386094,2.4243,3724.7,3724.6,3.2078]
[1754345386295,2.4243,3724.7,3724.2,3.2414]
[1754345386593,2.4243,3724.6,3724.5,0.53695]
[1754345386983,2.4243,3724.6,3724.5,0.59065]
[1754345387593,0.5181,3724.6,3724.5,0.59065]
[1754345387784,1.0266,3724.9,3724.8,0.6443]
[1754345388093,1.0266,3724.9,3724.8,0.6779]
[1754345388590,0.5181,3724.7,3724.6,0.53693]
[1754345388787,0.9667,3724.4,3724.3,0.67798]
[1754345388986,1.3977,3724.4,3724.3,0.67798]
[1754345389389,2.4243,3724.4,3724.3,0.67798]
[1754345389595,1.9933,3724.4,3724.3,0.67798]
[1754345390092,0.5181,3724.4,3724.3,0.67798]
[1754345390394,0.5085,3724.7,3724.6,0.63143]
[1754345390893,1.0266,3724.7,3724.6,0.63143]
[1754345391094,1.359,3724.7,3724.6,0.63143]
[1754345391294,1.9933,3724.7,3724.6,0.63143]
[1754345391592,2.4243,3724.7,3724.6,0.63143]
[1754345391787,0.5181,3724.7,3724.6,0.53693]
[1754345391992,2.4243,3724.6,3724.5,0.53694]
[1754345392689,2.4243,3724.6,3724.5,0.60894]
[1754345392994,2.4243,3724.6,3724.5,0.63144]
[1754345393196,2.4243,3724.6,3724.5,0.60894]
[1754345393493,2.4243,3724.6,3724.5,0.63144]
[1754345395494,0.5181,3724.6,3724.5,0.63144]
[1754345395791,1.4848,3724.6,3724.5,0.63144]
[1754345395991,1.9933,3724.6,3724.5,0.63144]
[1754345396998,2.4243,3725.0,3724.9,0.60889]
[1754345397192,2.4243,3725.0,3724.9,0.63139]
[1754345397392,2.4243,3725.0,3724.9,0.60889]
[1754345398093,2.4243,3725.0,3724.9,0.53689]
[1754345398293,2.4243,3725.0,3724.9,0.60889]
[1754345398690,2.4243,3725.0,3724.9,0.63139]
[1754345398691,1.0266,3725.0,3724.9,0.63139]
[1754345398897,1.9933,3725.0,3724.9,0.63139]
[1754345400195,2.4243,3725.0,3724.9,0.63139]
[1754345400591,19.51283,3725.4,3725.3,0.60883]
[1754345400592,20.9693,3725.4,3725.3,0.60883]
[1754345400801,21.4003,3725.4,3725.3,0.63133]
[1754345401792,1.2928,3725.8,3725.7,0.58547]
[1754345402091,18.974,3725.9,3725.7,0.60067]
[1754345402394,0.4747,3725.8,3725.7,0.60067]
[1754345403192,0.9756,3726.3,3726.2,0.0639]
[1754345403396,0.9756,3726.3,3726.2,0.6006]
[1754345403592,0.4747,3726.3,3726.2,0.6006]
[1754345403793,19.9259,3726.6,3726.1,3.2078]
[1754345403998,2.3502,3726.2,3726.1,3.74452]
[1754345404693,2.3502,3726.2,3725.7,0.0152]
[1754345404694,2.3502,3726.2,3725.7,3.2078]
[1754345404894,1.1564,3725.8,3725.7,3.74457]
[1754345405198,2.3502,3725.8,3725.7,3.74457]
[1754345405594,2.88696,3725.8,3725.7,3.2078]
[1754345405795,2.3502,3725.8,3725.7,3.2078]
[1754345407695,0.9549,3725.8,3725.6,0.53678]
[1754345408002,0.6555,3725.3,3725.2,3.2078]
[1754345408198,2.3502,3725.3,3725.2,3.74465]
[1754345408398,2.3502,3725.3,3725.2,3.79335]
[1754345408703,1.9305,3725.3,3725.2,3.80855]
[1754345409100,2.3502,3725.3,3725.2,3.80855]
[1754345409803,2.3502,3725.3,3725.2,3.79335]
[1754345411005,2.88703,3725.3,3725.2,3.2078]
[1754345411303,2.3502,3725.3,3725.2,3.2078]
[1754345412898,2.033,3725.2,3725.1,0.53685]
[1754345413102,2.3502,3725.2,3725.1,0.53685]
[1754345414700,2.3502,3725.2,3725.1,0.56115]
[1754345414894,2.3502,3725.2,3725.1,0.58555]
[1754345415095,2.3502,3725.2,3725.1,0.60075]
[1754345415802,2.3502,3725.2,3725.1,0.58555]
[1754345416101,2.3502,3725.2,3725.1,0.53685]
[1754345416406,2.3502,3724.8,3724.7,3.2078]
[1754345416999,18.959,3725.2,3724.2,3.27195353]
[1754345417000,0.6377,3724.4,3724.3,3.2078]
[1754345417202,2.3502,3724.4,3723.5,1.91429353]
[1754345417402,2.3502,3724.0,3723.9,3.2078]
[1754345417599,1.8493,3723.5,3723.4,3.74491]
[1754345417895,1.34255,3724.1,3723.0,2.34809353]
[1754345417896,1.3953,3723.1,3723.0,3.74496]
[1754345418103,1.3953,3723.1,3723.0,3.2078]
[1754345418605,0.8944,3722.5,3722.4,3.74504]
[1754345418806,1.3953,3722.5,3722.4,3.2078]
[1754345419009,0.9756,3722.5,3722.4,3.2078]
[1754345419310,1.3953,3722.5,3722.4,3.2078]
[1754345419506,1.3953,3722.5,3722.4,3.6416]
[1754345419706,1.3953,3722.5,3722.4,3.2078]
[1754345421212,1.3953,3722.8,3722.7,0.5372]
[1754345421807,0.53718,3722.9,3722.4,3.2078]
[1754345422013,1.3953,3722.6,3722.4,3.2078]
[1754345422415,1.3953,3722.5,3722.4,3.2078]
[1754345422611,1.93255,3722.4,3722.0,0.5373]
[1754345422915,1.3953,3722.2,3722.1,0.53728]
[1754345423105,0.8944,3722.1,3722.0,0.5373]
[1754345423311,1.3953,3722.1,3722.0,0.5373]
[1754345423809,1.3953,3722.1,3721.8,3.2078]
[1754345423810,0.4747,3722.5,3722.1,1.34323]
[1754345424005,0.9756,3722.8,3722.7,0.97101]
[1754345424205,0.4747,3722.8,3722.7,0.98621]
[1754345424415,0.9756,3722.8,3722.7,0.98621]
[1754345424606,0.4747,3722.8,3722.7,4.19401]
[1754345424805,1.3953,3722.8,3722.7,3.74501]
[1754345425005,1.3953,3722.8,3722.7,4.19401]
[1754345425006,0.4747,3722.8,3722.7,4.19401]
[1754345425210,19.4357,3723.0,3722.9,0.98618]
[1754345425417,19.9366,3723.0,3722.9,0.98618]
[1754345425713,20.3563,3723.0,3722.9,0.53718]
[1754345426115,1.3953,3722.9,3722.8,0.53719]
[1754345426916,1.93249,3722.9,3722.7,3.2078]
[1754345427216,1.3953,3722.8,3722.7,3.2078]
[1754345428019,0.4747,3722.8,3722.7,3.6416]
[1754345428212,1.34288,3723.1,3722.7,3.2078]
[1754345428510,0.53735,3721.7,3721.0,1.3992]
[1754345428718,0.9756,3721.5,3721.0,1.3992]
[1754345428912,0.9756,3721.4,3721.2,0.53741]
[1754345429108,0.9756,3721.3,3721.2,1.46031]
[1754345429613,0.5009,3721.3,3721.2,1.93661]
[1754345430311,19.9356,3721.6,3721.5,1.46028]
[1754345430513,20.47298,3721.6,3721.4,0.53738]
[1754345430715,0.9756,3721.5,3721.4,0.4338]
[1754345430907,0.9756,3721.5,3721.4,0.9229]
[1754345431314,0.9756,3721.5,3721.4,1.3992]
[1754345431914,18.961,3721.7,3721.6,0.9475]
[1754345432116,18.961,3721.7,3721.6,1.4713]
[1754345432310,19.451,3722.0,3721.3,3.2078]
[1754345432511,19.943,3722.0,3721.6,1.0223]
[1754345432712,0.492,3721.9,3721.7,1.4713]
[1754345432922,0.492,3721.9,3721.8,0.9728]
[1754345432923,0.982,3721.9,3721.8,0.9728]
[1754345433225,0.9837,3721.9,3721.8,0.449]
[1754345433418,0.0017,3721.6,3721.3,3.2078]
[1754345433618,0.982,3721.3,3721.2,0.449]
[1754345433819,0.492,3721.0,3720.9,1.95394486]
[1754345434019,0.9837,3721.0,3720.9,1.41649486]
[1754345434214,0.9837,3721.0,3720.9,0.96749486]
[1754345436421,0.492,3721.0,3720.9,1.94029486]
[1754345436715,0.982,3721.2,3721.0,0.53745]
[1754345436921,0.4917,3721.2,3721.1,0.9728]
[1754345437317,1.02912,3721.2,3720.9,0.96749486]
[1754345437516,0.9837,3721.0,3720.9,0.96749486]
[1754345438612,1.6656,3721.0,3720.9,0.96749486]
[1754345440424,1.6656,3721.0,3720.9,1.25549486]
[1754345440619,20.6316,3721.0,3720.9,2.38249486]
[1754345440814,18.966,3721.0,3720.9,3.40479486]
[1754345441020,19.458,3721.0,3720.9,2.43879486]
[1754345441326,19.948,3721.0,3720.9,2.43879486]
[1754345441517,19.9497,3721.0,3720.9,0.96749486]
[1754345442323,3.2078,3721.3,3721.2,0.53742]
[1754345442518,23.1568,3721.3,3721.2,2.00872]
[1754345443322,22.6668,3721.3,3721.2,2.00872]
[1754345443523,23.4887,3721.3,3721.2,2.97472]
[1754345443823,4.869,3721.3,3721.2,2.97472]
[1754345444028,39.6647,3721.6,3721.5,2.97468]
[1754345444329,57.648,3721.6,3721.5,2.97468]
[1754345445225,18.967,3721.6,3721.5,2.97468]
[1754345445928,0.3319,3722.1,3722.0,2.97461]
[1754345446129,19.9507,3722.1,3722.0,1.51011]
[1754345446325,19.9507,3722.1,3722.0,0.53731]
[1754345446922,19.9507,3722.1,3722.0,1.51011]
[1754345447425,19.459,3722.1,3722.0,0.98631]
[1754345447626,18.967,3722.1,3722.0,2.00861]
[1754345448225,19.65350458,3722.1,3722.0,2.00861]
[1754345448727,0.9643313,3723.0,3722.6,0.88482]
[1754345448927,0.9643313,3723.3,3723.2,1.4713]
[1754345449134,0.1335268,3723.4,3723.3,2.00842]
[1754345449725,1.55123021,3723.4,3723.3,2.00842]
[1754345450121,0.62553021,3723.4,3723.3,2.00842]
[1754345450633,0.492,3723.4,3723.3,2.00842]
[1754345450829,18.965,3723.4,3723.3,2.00842]
[1754345451030,4.1721313,3723.5,3723.4,1.4713]
[1754345453232,3.2078,3723.5,3723.4,1.4713]
[1754345456033,3.2078,3723.5,3723.4,2.4373]
[1754345456636,5.5945,3723.5,3723.4,0.6356]
[1754345456830,3.2078,3723.5,3723.4,2.4373]
[1754345457031,22.1648,3723.9,3723.8,2.97435]
[1754345457833,3.2078,3724.4,3724.3,1.4713]
[1754345458029,3.6435,3724.4,3724.3,0.9728]
[1754345458228,4.6255,3724.4,3724.3,0.9728]
[1754345458434,4.6255,3724.4,3724.3,1.4713]
[1754345458628,3.6998,3724.4,3724.3,1.4713]
[1754345458829,3.2078,3724.4,3724.3,1.4713]
[1754345459131,4.6255,3724.4,3724.3,1.4713]
[1754345459332,23.5815,3724.4,3724.3,0.449]
[1754345460730,22.1638,3724.4,3724.3,1.4713]
[1754345460927,19.446,3724.4,3724.3,0.9728]
[1754345461128,20.6172,3724.4,3724.3,2.4373]
[1754345461334,21.3427,3724.4,3724.3,2.4373]
[1754345461643,18.956,3724.4,3724.3,2.4373]
[1754345462135,19.6254,3724.4,3724.3,1.9388]
[1754345462340,24.5839,3724.4,3724.3,1.9388]
[1754345463337,24.5839,3724.4,3724.3,1.0846]
[1754345463538,22.1638,3724.4,3724.3,2.4402]
[1754345464039,18.95,3724.4,3724.3,2.4402]
[1754345465036,0.53691,3724.8,3724.7,2.0832]
[1754345465239,19.48591,3724.8,3724.7,2.4133]
[1754345465642,20.65121,3724.8,3724.7,2.4133]
[1754345465831,21.16061,3724.8,3724.7,2.4133]
[1754345466034,21.61211,3724.8,3724.7,2.4133]
[1754345466438,21.90601,3724.8,3724.7,1.0577]
[1754345466743,21.90601,3724.8,3724.7,0.6161]
[1754345466939,0.6694,3724.6,3724.5,1.8964]
[1754345467138,19.93741,3724.8,3724.1,4.55031]
[1754345467139,0.53691,3724.8,3724.7,1.3878]
[1754345467338,19.48391,3724.8,3724.7,2.4133]
[1754345467642,18.947,3724.8,3724.7,2.4133]
[1754345468144,20.1123,3724.8,3724.7,2.4133]
[1754345468441,21.1586,3724.8,3724.7,2.4133]
[1754345468938,21.6101,3724.8,3724.7,2.4133]
[1754345469441,2.4201,3724.5,3724.4,2.43335]
[1754345469643,18.945,3724.5,3724.4,2.95025]
[1754345471240,20.1103,3724.5,3724.4,2.95025]
[1754345471435,21.3651,3724.5,3724.4,2.4133]
[1754345472046,2.4201,3724.4,3724.3,0.53696]
[1754345472548,2.4201,3724.4,3724.3,1.15306]
[1754345472737,2.4201,3724.4,3724.3,0.6161]
[1754345472943,0.9633,3723.8,3723.7,1.48325]
[1754345473246,2.4201,3723.8,3723.7,1.8964]
[1754345473444,2.4201,3723.6,3723.5,1.15318]
[1754345473644,2.4201,3723.6,3723.5,1.92488]
[1754345473838,2.4201,3723.6,3723.5,2.95038]
[1754345475447,1.4592,3723.6,3723.5,2.95038]
[1754345475637,0.8356,3723.9,3723.8,2.4133]
[1754345475842,18.941,3724.0,3723.9,2.4133]
[1754345476044,18.941,3724.0,3723.9,2.95033]
[1754345476643,4.0334,3724.5,3724.4,1.5876]
[1754345476940,1.4568,3724.4,3724.2,0.5169]
[1754345477147,1.1653,3724.3,3724.2,2.4133]
[1754345477344,2.4201,3724.3,3724.2,2.95029]
[1754345477541,2.4201,3724.3,3724.2,0.53699]
[1754345477740,2.4201,3724.3,3724.2,1.48319]
[1754345477944,2.4201,3724.3,3724.2,1.92479]
[1754345478249,2.4201,3724.3,3724.2,0.53699]
[1754345478650,2.4201,3724.3,3724.2,0.85409]
[1754345478848,18.94,3724.5,3724.4,0.53696]
[1754345479047,18.94,3724.5,3724.4,2.95026]
[1754345479244,18.94,3724.5,3723.9,1.34257]
[1754345479245,2.95706,3724.4,3724.3,0.53697]
[1754345479450,2.95708,3724.3,3724.2,0.53698]
[1754345479955,2.4201,3724.3,3724.2,0.53698]
[1754345480354,2.4201,3724.3,3724.2,1.15308]
[1754345480852,2.4201,3724.3,3724.2,0.83598]
[1754345481244,2.4201,3724.3,3724.2,1.59468]
[1754345481451,22.1478,3724.5,3724.4,1.48316]
[1754345481647,20.1053,3724.5,3724.4,2.95026]
[1754345481855,19.2797,3724.5,3724.4,2.95026]
[1754345482355,21.3601,3724.5,3724.4,0.53696]
[1754345483450,0.53696,3724.4,3724.3,0.53696]
[1754345483653,2.95706,3724.4,3724.3,0.53696]
[1754345484052,1.4568,3724.3,3724.2,0.53699]
[1754345484246,1.50029,3724.3,3724.1,0.53699]
[1754345484452,21.3551,3724.2,3724.1,0.53699]
[1754345485148,18.935,3724.2,3724.1,2.95029]
[1754345485349,19.2747,3724.2,3724.1,2.95029]
[1754345485651,20.1003,3724.2,3724.1,2.95029]
[1754345485856,3.2078,3724.5,3724.4,1.66166]
[1754345486147,24.5629,3724.5,3724.4,1.15306]
[1754345486358,24.5629,3724.5,3724.4,2.95026]
[1754345486850,22.8122,3724.5,3724.4,2.95026]
[1754345487053,23.3081,3724.5,3724.4,2.95026]
[1754345487255,23.8175,3724.5,3724.4,2.95026]
[1754345487449,24.5629,3724.5,3724.4,2.95026]
[1754345488758,24.5629,3724.5,3724.4,2.4133]
[1754345488959,2.4201,3724.2,3724.1,0.53699]
[1754345489157,21.3531,3724.2,3724.1,0.53699]
[1754345490359,21.3531,3724.2,3724.1,1.15309]
[1754345490560,21.3531,3724.2,3724.1,2.43339]
[1754345490760,21.3531,3724.2,3724.1,2.95029]
[1754345491955,21.3531,3724.2,3724.1,2.43339]
[1754345492160,21.3531,3724.2,3724.1,1.92479]
[1754345492360,21.3531,3724.2,3724.1,1.15309]
[1754345492857,21.3531,3724.2,3724.1,0.53699]
[1754345493662,2.3617,3723.9,3723.8,1.0902]
[1754345493862,21.82774,3723.9,3723.8,0.53704]